bitfinex/quotes_SOLUSD_20241118
["timestamp","ask_amount","ask_price","bid_price","bid_amount"]
[1731937320986,74.16,240.39,240.33,19.98923607]
[1731937321579,94.14923607,240.39,240.31,19.98923607]
[1731937323371,94.14923607,240.39,240.31,24.15043607]
[1731937324383,234.1595,240.42,240.33,19.98923607]
[1731937324584,234.1595,240.42,240.35,19.98923607]
[1731937324793,30.0,240.36,240.35,19.98923607]
[1731937324984,30.0,240.36,240.33,19.98923607]
[1731937325290,30.0,240.36,240.31,19.98923607]
[1731937325671,70.0,240.34,240.27,30.39373607]
[1731937326089,70.0,240.31,240.22,10.4067]
[1731937326290,89.98923607,240.31,240.23,19.98923607]
[1731937326498,4.1614,240.3,240.22,30.39593607]
[1731937327278,4.1614,240.3,240.17,16.657196]
[1731937327279,20.24021607,240.29,240.2,19.98923607]
[1731937327486,89.98923607,240.23,240.12,14.5755]
[1731937327683,89.98923607,240.23,240.13,19.98923607]
[1731937327888,89.98923607,240.23,240.15,19.98923607]
[1731937328091,19.98923607,240.27,240.19,19.98923607]
[1731937328303,4.1614,240.3,240.21,19.98923607]
[1731937328795,70.0,240.38,240.29,19.98923607]
[1731937328984,4.1597,240.4,240.32,19.98923607]
[1731937329381,70.0,240.27,240.21,6.4696]
[1731937329599,70.0,240.27,240.2,19.98923607]
[1731937329899,70.0,240.24,240.17,39.98923607]
[1731937332802,74.1625,240.24,240.17,19.98923607]
[1731937333121,70.0,240.24,240.19,19.98923607]
[1731937334486,70.0,240.24,240.19,12.48694383]
[1731937334687,160.0,240.25,240.19,12.48694383]
[1731937334884,70.0,240.27,240.21,12.48694383]
[1731937335499,22.60427462,240.26,240.18,12.48694383]
[1731937335701,70.0,240.17,240.11,22.89864383]
[1731937337002,74.1637,240.17,240.11,22.89864383]
[1731937337595,74.1637,240.17,240.11,12.48694383]
[1731937337794,70.0,240.12,240.07,12.48694383]
[1731937338304,230.0,240.15,240.07,19.99924746]
[1731937339007,70.0,240.15,240.11,19.99924746]
[1731937339317,234.1629,240.22,240.13,19.99924746]
[1731937339617,234.1629,240.22,240.05,0.92656338]
[1731937339618,74.1629,240.22,240.16,19.99924746]
[1731937339791,70.0,240.19,240.14,19.99924746]
[1731937341382,70.0,240.22,240.14,19.99924746]
[1731937341584,70.0,240.22,240.16,19.99924746]
[1731937341807,74.1628,240.22,240.15,14.5741]
[1731937342410,74.1628,240.22,240.05,14.5798]
[1731937342411,70.0,240.11,240.05,14.5798]
[1731937342591,19.99924746,240.12,240.05,14.5798]
[1731937342798,4.1645,240.13,240.05,14.5798]
[1731937343387,4.1645,240.13,240.05,34.57904746]
[1731937344005,89.99924746,240.14,240.05,34.57904746]
[1731937344192,94.16344746,240.14,240.05,34.57904746]
[1731937344398,70.0,240.11,240.05,14.5798]
[1731937344603,19.99924746,240.1,240.05,10.4141]
[1731937344816,89.99924746,240.08,240.01,10.4162]
[1731937345000,89.99924746,240.08,240.0,16.585]
[1731937345001,70.0,240.03,240.0,10.0]
[1731937345202,19.99924746,240.02,240.0,10.0]
[1731937345811,49.99924746,240.02,240.0,10.0]
[1731937346215,4.1664,240.01,240.0,10.0]
[1731937346801,34.1664,240.01,240.0,10.0]
[1731937347018,4.1664,240.01,240.0,10.0]
[1731937347897,70.0,240.03,240.0,10.0]
[1731937348108,74.1657,240.06,240.0,10.0]
[1731937348305,70.0,240.03,240.0,10.0]
[1731937350021,70.0,240.01,240.0,10.0]
[1731937350811,160.0,240.06,240.0,10.0]
[1731937350812,89.99924746,240.05,240.0,10.0]
[1731937350994,70.0,240.02,240.0,10.0]
[1731937351188,19.99924746,240.01,240.0,10.0]
[1731937351815,49.99924746,240.01,240.0,10.0]
[1731937352023,30.0,240.01,240.0,10.0]
[1731937352997,160.0,240.03,240.0,10.0]
[1731937353326,19.99924746,240.01,240.0,10.0]
[1731937353495,179.99924746,240.03,240.0,10.0]
[1731937353711,19.99924746,240.03,240.0,10.0]
[1731937354025,19.99924746,240.01,240.0,10.0]
[1731937354919,70.0,240.02,240.0,10.0]
[1731937355132,230.0,240.14,240.01,24.12153862]
[1731937355333,70.0,240.07,240.0,44.58244746]
[1731937355540,19.99924746,240.06,240.0,24.5832]
[1731937357364,4.1652,240.09,240.0,24.5832]
[1731937357365,70.0,240.17,240.06,0.09367462]
[1731937357514,30.0,240.07,240.06,24.12153862]
[1731937357713,70.0,240.13,240.06,23.776884]
[1731937357939,19.99924746,240.15,240.07,19.99924746]
[1731937358741,19.99924746,240.15,240.08,4.1652]
[1731937358921,160.0,240.2,240.06,34.190584]
[1731937358922,89.99924746,240.13,240.06,38.355984]
[1731937359124,19.99924746,240.11,240.06,10.4137]
[1731937359326,89.99924746,240.13,240.06,10.4137]
[1731937359636,89.99924746,240.2,240.11,19.99924746]
[1731937360533,19.99924746,240.18,240.09,20.09292208]
[1731937360734,19.99924746,240.18,240.1,38.354084]
[1731937361417,89.99924746,240.2,240.11,19.99924746]
[1731937361742,70.0,240.16,240.1,14.5772]
[1731937362046,89.99924746,240.16,240.1,10.4123]
[1731937362416,89.99924746,240.16,240.1,14.5772]
[1731937362636,19.99924746,240.14,240.08,4.1652]
[1731937362844,19.99924746,240.1,240.01,19.99924746]
[1731937363045,19.99924746,240.07,240.01,4.1663]
[1731937363236,89.99924746,240.09,240.01,24.16554746]
[1731937363738,19.99924746,240.05,240.01,10.4162]
[1731937364938,19.99924746,240.05,240.01,14.5826]
[1731937365740,19.99924746,240.07,240.01,14.5826]
[1731937365921,19.99924746,240.09,240.01,14.5826]
[1731937366458,179.99924746,240.11,240.05,23.776884]
[1731937366742,19.99924746,240.11,240.05,23.776884]
[1731937367839,19.99924746,240.11,240.04,19.99924746]
[1731937367840,19.99924746,240.17,240.08,19.99924746]
[1731937368038,89.99924746,240.19,240.1,19.99924746]
[1731937368226,19.99924746,240.19,240.12,19.99924746]
[1731937368429,70.0,240.22,240.14,19.99924746]
[1731937368823,74.1628,240.22,240.14,19.99924746]
[1731937369048,74.1628,240.22,240.13,23.776884]
[1731937369049,19.99924746,240.21,240.13,23.776884]
[1731937369547,19.99924746,240.21,240.12,19.99924746]
[1731937369729,19.99924746,240.21,240.13,23.776884]
[1731937369927,24.16224746,240.21,240.14,4.1642]
[1731937370532,24.16184746,240.24,240.15,23.776884]
[1731937371063,89.99924746,240.19,240.12,4.1644]
[1731937371420,89.99924746,240.19,240.12,14.5758]
[1731937373148,94.16264746,240.19,240.12,14.5758]
[1731937373351,19.99924746,240.19,240.13,23.776884]
[1731937374330,19.99924746,240.15,240.11,6.2529]
[1731937374532,30.0,240.14,240.09,4.1649]
[1731937374744,30.0,240.14,240.08,10.4131]
[1731937374745,19.99924746,240.13,240.08,10.4131]
[1731937375054,30.0,240.14,240.08,14.5783]
[1731937375649,19.99924746,240.13,240.08,10.4131]
[1731937375827,19.99924746,240.13,240.05,22.8057]
[1731937376031,19.99924746,240.07,240.0,14.1665]
[1731937376249,19.99924746,240.07,240.0,10.0]
[1731937376446,19.99924746,240.07,240.0,14.1665]
[1731937377350,30.0,240.06,240.01,23.776884]
[1731937377929,30.0,240.06,240.01,47.94253146]
[1731937378234,30.0,240.06,240.01,58.35873146]
[1731937380524,30.0,240.06,240.04,0.09367462]
[1731937380728,89.99924746,240.18,240.06,24.12153862]
[1731937380925,30.0,240.07,240.06,24.12153862]
[1731937381862,70.0,240.17,240.06,24.12153862]
[1731937382068,70.0,240.13,240.01,14.5826]
[1731937382240,70.0,240.16,240.12,19.99924746]
[1731937382442,30.0,240.13,240.12,43.77613146]
[1731937382645,30.0,240.13,240.12,47.94063146]
[1731937382965,19.99924746,240.19,240.13,23.776884]
[1731937383460,19.99924746,240.21,240.13,23.776884]
[1731937384234,19.99924746,240.19,240.13,23.776884]
[1731937384967,24.16174746,240.24,240.17,23.776884]
[1731937385458,24.16174746,240.24,240.14,19.99924746]
[1731937385756,24.16174746,240.24,240.15,23.776884]
[1731937386062,70.0,240.23,240.16,4.1638]
[1731937386451,74.1627,240.23,240.16,4.1638]
[1731937386753,19.99924746,240.22,240.16,4.1638]
[1731937387381,19.99924746,240.2,240.14,27.940984]
[1731937387553,19.99924746,240.22,240.14,58.35073146]
[1731937388234,24.16204746,240.22,240.14,58.35073146]
[1731937388662,19.99924746,240.22,240.15,0.09367462]
[1731937388845,24.16144746,240.26,240.18,19.99924746]
[1731937389041,24.16144746,240.26,240.16,19.99924746]
[1731937389241,24.16144746,240.26,240.17,23.776884]
[1731937389443,19.99924746,240.24,240.17,23.776884]
[1731937389960,19.99924746,240.24,240.17,27.940384]
[1731937390359,19.99924746,240.28,240.19,24.12153862]
[1731937390657,160.0,240.32,240.25,19.99924746]
[1731937390658,19.99924746,240.32,240.25,19.99924746]
[1731937390864,89.99924746,240.3,240.23,19.99924746]
[1731937391645,19.99924746,240.32,240.24,23.776884]
[1731937391945,19.99924746,240.32,240.25,24.16154746]
[1731937392146,19.99924746,240.32,240.25,4.1623]
[1731937392753,24.16034746,240.32,240.24,34.183084]
[1731937392954,24.16034746,240.32,240.24,38.345584]
[1731937393158,24.16014746,240.34,240.26,23.776884]
[1731937393364,94.16014746,240.34,240.26,23.776884]
[1731937393542,19.99924746,240.32,240.25,23.87055862]
[1731937393942,19.99924746,240.32,240.25,28.03285862]
[1731937395368,19.99924746,240.34,240.26,0.25098]
[1731937395568,19.99924746,240.34,240.27,20.09292208]
[1731937395947,230.0,240.37,240.27,20.09292208]
[1731937395948,24.15974746,240.36,240.28,23.776884]
[1731937396268,19.99924746,240.36,240.28,0.09367462]
[1731937396468,19.99924746,240.36,240.3,23.776884]
[1731937396805,89.99924746,240.34,240.25,34.56734746]
[1731937397096,4.1603,240.37,240.29,19.99924746]
[1731937397097,30.0,240.31,240.29,19.99924746]
[1731937397294,70.0,240.38,240.26,23.776884]
[1731937397295,24.15994746,240.35,240.28,23.776884]
[1731937397471,70.0,240.41,240.29,0.09367462]
[1731937397797,24.15844746,240.43,240.36,23.776884]
[1731937398485,19.99924746,240.41,240.34,23.87055862]
[1731937398783,24.15884746,240.41,240.34,28.03115862]
[1731937399503,19.99924746,240.41,240.34,38.43305862]
[1731937399797,19.99924746,240.43,240.36,23.87055862]
[1731937400001,19.99924746,240.45,240.38,0.09367462]
[1731937400313,19.99924746,240.47,240.4,23.87055862]
[1731937400598,19.99924746,240.49,240.42,23.776884]
[1731937400908,30.0,240.43,240.42,23.776884]
[1731937401369,24.15744746,240.49,240.42,23.776884]
[1731937403364,19.99924746,240.45,240.39,10.3995]
[1731937403575,19.99924746,240.43,240.37,4.1601]
[1731937404064,19.99924746,240.45,240.38,0.09367462]
[1731937404282,19.99924746,240.47,240.39,19.99924746]
[1731937404498,19.99924746,240.47,240.37,14.5607]
[1731937404499,19.99924746,240.45,240.37,34.55994746]
[1731937404670,19.99924746,240.38,240.27,10.64019764]
[1731937404991,19.99924746,240.42,240.33,19.99924746]
[1731937405199,4.1599,240.39,240.32,0.09367462]
[1731937405393,19.99924746,240.38,240.31,10.4032]
[1731937405785,30.0,240.37,240.31,10.4032]
[1731937406377,19.99924746,240.36,240.29,19.99924746]
[1731937406806,100.0,240.37,240.27,6.3465]
[1731937406807,89.99924746,240.34,240.27,6.3465]
[1731937406975,19.99924746,240.32,240.25,15.3703]
[1731937407301,30.0,240.37,240.28,19.99924746]
[1731937407500,24.15964746,240.36,240.28,19.99924746]
[1731937407999,24.15964746,240.36,240.26,20.09292208]
[1731937408000,30.0,240.31,240.26,20.09292208]
[1731937408481,30.0,240.31,240.27,23.776884]
[1731937408871,4.1612,240.32,240.27,23.776884]
[1731937409087,24.16014746,240.34,240.26,48.03190608]
[1731937409962,160.0,240.38,240.28,0.09367462]
[1731937409963,19.99924746,240.36,240.28,0.09367462]
[1731937410193,24.15974746,240.36,240.29,23.776884]
[1731937413079,70.0,240.39,240.3,20.09292208]
[1731937413080,24.15934746,240.38,240.3,20.09292208]
[1731937413258,4.1601,240.38,240.31,23.776884]
[1731937414487,24.15934746,240.38,240.31,23.776884]
[1731937415552,19.99924746,240.36,240.29,23.776884]
[1731937415755,19.99924746,240.34,240.27,23.776884]
[1731937416774,19.99924746,240.34,240.27,27.938784]
[1731937417159,19.99924746,240.34,240.27,23.776884]
[1731937418267,70.0,240.32,240.26,19.99924746]
[1731937418581,70.0,240.32,240.15,19.99924746]
[1731937418582,89.99924746,240.27,240.15,19.99924746]
[1731937418885,19.99924746,240.25,240.17,19.99924746]
[1731937419068,19.99924746,240.27,240.18,0.09367462]
[1731937419379,19.99924746,240.27,240.14,14.5747]
[1731937419380,30.0,240.23,240.21,19.99924746]
[1731937419583,30.0,240.23,240.22,0.09367462]
[1731937419788,4.1609,240.33,240.22,24.12153862]
[1731937419966,4.1609,240.33,240.26,19.99924746]
[1731937420365,89.99924746,240.33,240.27,23.776884]
[1731937420579,19.99924746,240.29,240.22,19.99924746]
[1731937420782,19.99924746,240.29,240.2,19.99924746]
[1731937421084,70.0,240.3,240.18,10.4086]
[1731937421085,19.99924746,240.27,240.19,0.09367462]
[1731937421293,19.99924746,240.23,240.15,14.574]
[1731937422283,12.49045957,240.23,240.15,14.574]
[1731937422581,16.65315957,240.23,240.16,4.1637]
[1731937423266,12.49045957,240.21,240.15,10.4101]
[1731937423468,12.49045957,240.19,240.13,10.5777]
[1731937423706,12.49045957,240.19,240.13,4.1642]
[1731937424262,19.98950454,240.2,240.13,14.5752]
[1731937424922,89.98950454,240.14,240.08,6.3518]
[1731937425088,19.98950454,240.09,240.02,24.15580454]
[1731937425284,19.98950454,240.09,240.03,10.4153]
[1731937426687,19.98950454,240.09,240.04,23.776884]
[1731937427767,19.98950454,240.09,240.04,34.191784]
[1731937427972,70.0,240.14,240.05,0.09367462]
[1731937427973,19.98950454,240.11,240.05,0.09367462]
[1731937429076,89.98950454,240.11,240.04,34.191784]
[1731937429295,19.98950454,240.09,240.04,34.191784]
[1731937429882,89.98950454,240.11,240.04,34.191784]
[1731937430079,19.98950454,240.11,240.04,34.191784]
[1731937430872,19.98950454,240.11,240.04,38.357684]
[1731937431597,19.98950454,240.11,240.05,0.25098]
[1731937431984,19.98950454,240.11,240.06,0.09367462]
[1731937432786,19.98950454,240.11,240.07,4.1654]
[1731937433000,19.98950454,240.11,240.08,23.776884]
[1731937433381,19.98950454,240.13,240.08,23.776884]
[1731937434976,19.98950454,240.11,240.08,23.776884]
[1731937435205,19.98950454,240.09,240.08,23.776884]
[1731937435799,19.98950454,240.09,240.08,23.87055862]
[1731937435997,19.98950454,240.11,240.08,23.87055862]
[1731937438278,19.98950454,240.11,240.06,23.776884]
[1731937438477,24.15420454,240.11,240.06,23.776884]
[1731937438701,24.15420454,240.11,240.05,4.1656]
[1731937438702,24.15420454,240.11,240.04,23.87055862]
[1731937438997,24.15420454,240.11,240.06,0.09367462]
[1731937439927,24.15420454,240.11,240.06,23.87055862]
[1731937440308,70.0,240.23,240.11,0.34465462]
[1731937440481,89.98950454,240.23,240.17,0.09367462]
[1731937441200,19.98950454,240.23,240.17,0.09367462]
[1731937441411,89.98950454,240.23,240.17,0.09367462]
[1731937441710,94.15210454,240.23,240.17,0.09367462]
[1731937442601,70.0,240.2,240.15,23.776884]
[1731937442896,70.0,240.28,240.2,24.12153862]
[1731937443200,19.98950454,240.29,240.21,19.98950454]
[1731937443407,19.98950454,240.29,240.23,0.09367462]
[1731937444309,12.4853731,240.28,240.23,0.09367462]
[1731937445186,12.4853731,240.28,240.24,23.776884]
[1731937445509,12.4853731,240.32,240.25,0.21916462]
[1731937445809,6.23,240.26,240.25,44.12153862]
[1731937445986,12.4853731,240.42,240.3,0.09367462]
[1731937446315,70.0,240.45,240.36,0.25098]
[1731937446492,12.4853731,240.46,240.37,12.4853731]
[1731937446690,12.4853731,240.46,240.38,0.25098]
[1731937447201,12.4853731,240.46,240.4,0.12549]
[1731937447897,12.4853731,240.44,240.4,0.12549]
[1731937448285,160.0,240.49,240.41,20.04323438]
[1731937448596,19.94955976,240.49,240.42,0.12549]
[1731937449004,19.94955976,240.47,240.41,0.12549]
[1731937449318,19.94955976,240.43,240.36,0.25098]
[1731937449619,19.94955976,240.41,240.36,0.25098]
[1731937449989,19.94955976,240.41,240.37,0.21916462]
[1731937450189,19.94955976,240.43,240.37,0.21916462]
[1731937450390,19.94955976,240.43,240.37,4.28559]
[1731937450611,19.94955976,240.43,240.38,0.09367462]
[1731937450909,19.94955976,240.43,240.38,0.21916462]
[1731937451210,19.94955976,240.41,240.38,0.21916462]
[1731937451408,19.94955976,240.43,240.38,0.21916462]
[1731937451606,19.94955976,240.43,240.38,4.25367462]
[1731937452389,19.94955976,240.43,240.39,0.25098]
[1731937452789,19.94955976,240.43,240.4,0.09367462]
[1731937452989,19.94955976,240.43,240.38,14.5601]
[1731937453214,19.94955976,240.41,240.38,14.5601]
[1731937453409,19.94955976,240.41,240.38,10.4001]
[1731937453716,19.94955976,240.39,240.32,10.4024]
[1731937453898,19.94955976,240.37,240.32,10.4024]
[1731937454102,19.94955976,240.37,240.33,0.09367462]
[1731937454417,19.94955976,240.37,240.32,10.4024]
[1731937454622,19.94955976,240.39,240.33,0.09367462]
[1731937455419,19.94955976,240.39,240.33,24.12153862]
[1731937455619,19.94955976,240.39,240.35,0.21916462]
[1731937456815,19.94955976,240.39,240.37,0.09367462]
[1731937457002,19.94955976,240.41,240.37,0.21916462]
[1731937457408,19.94955976,240.44,240.39,0.09367462]
[1731937457617,19.94955976,240.44,240.39,0.21916462]
[1731937458196,19.94955976,240.44,240.41,0.21916462]
[1731937458419,19.94955976,240.44,240.41,0.12549]
[1731937458597,19.94955976,240.44,240.39,4.1599]
[1731937458917,19.94955976,240.44,240.4,0.12549]
[1731937459721,19.94955976,240.42,240.4,0.12549]
[1731937459935,19.94955976,240.42,240.3,40.75665976]
[1731937460098,19.94955976,240.38,240.35,14.5618]
[1731937460421,19.94955976,240.38,240.36,0.09367462]
[1731937461624,19.94955976,240.38,240.35,14.5618]
[1731937462116,19.94955976,240.4,240.35,14.5618]
[1731937462331,160.0,240.46,240.39,0.21916462]
[1731937462504,19.94955976,240.45,240.39,0.21916462]
[1731937463221,19.94955976,240.47,240.41,0.09367462]
[1731937463596,19.94955976,240.47,240.41,4.25307462]
[1731937463918,19.94955976,240.47,240.42,0.12549]
[1731937464521,19.94955976,240.49,240.43,0.21916462]
[1731937464699,19.94955976,240.51,240.47,0.09367462]
[1731937465119,70.0,240.56,240.47,0.09367462]
[1731937465333,19.94955976,240.55,240.49,0.09367462]
[1731937465821,160.0,240.64,240.41,35.4561]
[1731937465822,19.94955976,240.51,240.43,10.3977]
[1731937466005,19.94955976,240.47,240.44,0.12549]
[1731937466207,19.94955976,240.47,240.45,0.09367462]
[1731937466935,19.94955976,240.47,240.45,4.25247462]
[1731937467224,70.0,240.53,240.45,4.25247462]
[1731937467225,19.94955976,240.49,240.45,4.25247462]
[1731937467419,19.94955976,240.47,240.43,10.3977]
[1731937467610,19.94955976,240.47,240.43,14.5569]
[1731937467814,70.0,240.42,240.29,4.1616]
[1731937468012,19.94955976,240.36,240.29,4.1616]
[1731937468209,19.94955976,240.36,240.3,0.09367462]
[1731937468638,19.94955976,240.36,240.29,4.1616]
[1731937468802,19.94955976,240.36,240.29,14.5656]
[1731937469811,19.94955976,240.34,240.29,14.5656]
[1731937470424,19.94955976,240.34,240.3,0.09367462]
[1731937470622,19.94955976,240.32,240.3,0.09367462]
[1731937471532,19.94955976,240.34,240.3,4.25507462]
[1731937471735,19.94955976,240.36,240.32,0.09367462]
[1731937472321,19.94955976,240.34,240.32,0.09367462]
[1731937472816,19.94955976,240.36,240.32,0.09367462]
[1731937473019,19.94955976,240.38,240.34,0.09367462]
[1731937473221,19.94955976,240.4,240.34,0.09367462]
[1731937474234,19.94955976,240.4,240.32,10.4027]
[1731937474443,19.94955976,240.34,240.23,24.1626]
[1731937474738,19.94955976,240.31,240.24,0.09367462]
[1731937475430,19.94955976,240.29,240.24,0.09367462]
[1731937475623,19.94955976,240.29,240.23,10.4066]
[1731937475943,19.94955976,240.27,240.23,10.4066]
[1731937476115,19.94955976,240.27,240.24,0.09367462]
[1731937476316,70.0,240.25,240.14,15.1661]
[1731937476530,19.94955976,240.17,240.14,15.1661]
[1731937476745,19.94955976,240.19,240.14,10.4105]
[1731937477239,19.94955976,240.21,240.14,10.4105]
[1731937477622,19.94955976,240.21,240.15,0.09367462]
[1731937478340,19.94955976,240.16,240.1,6.1162]
[1731937478542,19.94955976,240.14,240.09,14.5777]
[1731937478718,19.94955976,240.17,240.1,0.09367462]
[1731937478917,70.0,240.18,240.09,14.5777]
[1731937478918,19.94955976,240.15,240.09,14.5777]
[1731937479339,19.94955976,240.15,240.1,0.09367462]
[1731937479839,19.94955976,240.15,240.09,10.4127]
[1731937480039,19.94955976,240.15,240.1,0.09367462]
[1731937480545,19.94955976,240.17,240.1,0.09367462]
[1731937481028,19.94955976,240.17,240.1,0.21916462]
[1731937481213,19.94955976,240.19,240.12,0.34465462]
[1731937481538,94.11265976,240.21,240.13,0.12549]
[1731937481739,19.94955976,240.19,240.14,0.09367462]
[1731937482321,19.94955976,240.19,240.12,0.21916462]
[1731937482633,19.94955976,240.17,240.12,0.21916462]
[1731937482839,19.94955976,240.17,240.14,0.09367462]
[1731937483737,89.94955976,240.17,240.11,10.4118]
[1731937484123,19.94955976,240.19,240.12,0.09367462]
[1731937484521,19.94955976,240.17,240.12,0.09367462]
[1731937484725,89.94955976,240.17,240.11,14.5765]
[1731937485738,89.94955976,240.17,240.11,10.4118]
[1731937486251,19.94955976,240.17,240.12,0.09367462]
[1731937486950,19.94955976,240.19,240.12,0.09367462]
[1731937487246,19.94955976,240.19,240.12,0.21916462]
[1731937487956,19.94955976,240.19,240.13,4.1644]
[1731937490024,19.94955976,240.19,240.13,14.5754]
[1731937490448,19.94955976,240.19,240.14,0.09367462]
[1731937491345,19.94955976,240.21,240.14,20.16872438]
[1731937492021,19.94955976,240.21,240.15,14.5741]
[1731937492242,19.94955976,240.21,240.16,0.09367462]
[1731937493333,19.94955976,240.21,240.17,4.1637]
[1731937495150,19.94955976,240.23,240.18,24.12153862]
[1731937495348,19.94955976,240.27,240.18,44.07109838]
[1731937495555,19.94955976,240.27,240.21,0.21916462]
[1731937495729,30.0,240.22,240.21,0.21916462]
[1731937495933,19.94955976,240.27,240.21,0.21916462]
[1731937496129,19.94955976,240.25,240.21,0.21916462]
[1731937496339,19.94955976,240.23,240.17,14.5729]
[1731937496546,19.94955976,240.2,240.17,14.5729]
[1731937496729,19.94955976,240.2,240.13,14.5753]
[1731937497235,19.94955976,240.2,240.14,0.09367462]
[1731937497436,19.94955976,240.22,240.14,20.04323438]
[1731937497638,19.94955976,240.24,240.17,0.09367462]
[1731937498154,19.94955976,240.24,240.17,0.21916462]
[1731937498448,19.94955976,240.24,240.19,0.21916462]
[1731937499455,19.94955976,240.24,240.21,0.09367462]
[1731937499849,19.94955976,240.26,240.21,0.09367462]
[1731937500242,19.94955976,240.26,240.21,0.21916462]
[1731937500939,19.94955976,240.28,240.23,0.09367462]
[1731937501131,19.94955976,240.28,240.23,0.21916462]
[1731937501656,19.94955976,240.26,240.25,0.09367462]
[1731937502165,19.94955976,240.26,240.24,4.1625]
[1731937502166,70.0,240.25,240.16,19.94955976]
[1731937502331,12.49022379,240.23,240.15,20.0]
[1731937502946,12.49022379,240.23,240.16,0.09367462]
[1731937503556,12.49022379,240.21,240.1,6.5314]
[1731937503765,12.49022379,240.19,240.11,12.49022379]
[1731937504071,12.49022379,240.17,240.13,10.4108]
[1731937504367,12.49022379,240.15,240.13,10.4108]
[1731937504569,12.49022379,240.15,240.11,4.1647]
[1731937504743,12.49022379,240.13,240.09,14.5776]
[1731937505669,12.49022379,240.15,240.09,10.4127]
[1731937507564,12.49022379,240.15,240.1,0.21916462]
[1731937508770,12.49022379,240.15,240.11,14.5765]
[1731937509269,70.0,240.19,240.11,14.5765]
[1731937509270,12.49022379,240.17,240.11,14.5765]
[1731937509471,74.1634,240.19,240.11,14.5765]
[1731937509472,12.49022379,240.15,240.11,14.5765]
[1731937510983,12.49022379,240.17,240.11,14.5765]
[1731937512771,70.0,240.16,240.11,14.5765]
[1731937512969,70.0,240.12,240.07,10.4136]
[1731937513275,12.49022379,240.11,240.05,4.1657]
[1731937513452,82.49022379,240.09,240.03,10.4152]
[1731937513652,82.49022379,240.09,240.03,14.5811]
[1731937514772,30.0,240.08,240.03,14.5811]
[1731937514963,30.0,240.08,240.03,27.07132379]
[1731937515164,30.0,240.08,240.04,0.09367462]
[1731937515470,30.0,240.08,240.06,0.09367462]
[1731937516058,30.0,240.08,240.04,0.21916462]
[1731937516445,12.49022379,240.11,240.04,0.21916462]
[1731937516867,12.49022379,240.11,240.05,14.5801]
[1731937518874,70.0,240.09,240.05,14.5801]
[1731937519472,12.49022379,240.11,240.05,14.5801]
[1731937520170,16.65492379,240.11,240.05,14.5801]
[1731937520360,70.0,240.09,240.05,14.5801]
[1731937520556,70.0,240.09,240.05,10.4144]
[1731937520866,12.49022379,240.11,240.05,10.4144]
[1731937523355,12.49022379,240.11,240.07,4.1654]
[1731937523566,12.49022379,240.11,240.08,0.09367462]
[1731937523772,12.49022379,240.11,240.07,14.579]
[1731937523967,12.49022379,240.13,240.08,0.12549]
[1731937524161,70.0,240.15,240.08,0.12549]
[1731937524162,70.0,240.27,240.13,0.09367462]
[1731937524363,70.0,240.27,240.23,12.49022379]
[1731937524560,70.0,240.27,240.21,12.49022379]
[1731937524782,70.0,240.27,240.19,12.49022379]
[1731937525167,70.0,240.27,240.21,12.49022379]
[1731937525374,74.162,240.27,240.21,12.49022379]
[1731937525566,70.0,240.24,240.19,16.65352379]
[1731937526083,12.49022379,240.28,240.2,0.09367462]
[1731937526264,70.0,240.3,240.25,12.49022379]
[1731937526462,30.0,240.26,240.25,12.49022379]
[1731937526688,70.0,240.3,240.25,12.49022379]
[1731937527179,70.0,240.27,240.19,14.5717]
[1731937527383,70.0,240.27,240.19,27.06192379]
[1731937527562,70.0,240.26,240.19,27.06192379]
[1731937528092,230.0,240.37,240.26,0.09367462]
[1731937528386,70.0,240.37,240.32,12.49022379]
[1731937528568,30.0,240.35,240.32,12.49022379]
[1731937528965,70.0,240.34,240.25,23.902374]
[1731937529186,70.0,240.34,240.27,12.49022379]
[1731937529568,70.0,240.34,240.29,12.49022379]
[1731937529888,82.49022379,240.4,240.32,0.09367462]
[1731937530084,70.0,240.37,240.31,12.49022379]
[1731937530384,70.0,240.34,240.29,12.49022379]
[1731937531962,70.0,240.3,240.27,12.49022379]
[1731937532385,70.0,240.3,240.25,12.49022379]
[1731937533272,70.0,240.33,240.29,12.49022379]
[1731937533472,70.0,240.33,240.31,12.49022379]
[1731937533695,70.0,240.38,240.31,16.65142379]